bitfinex-derivatives/quotes_BTCF0:USTF0_20250904
["timestamp","ask_amount","ask_price","bid_price","bid_amount"]
[1756965854522,1.46764873,110650.0,110640.0,0.01731361]
[1756965856522,2.29536873,110650.0,110640.0,0.01731361]
[1756965857622,1.46764873,110650.0,110640.0,0.01731361]
[1756965857819,2.2468215,110650.0,110640.0,0.01731361]
[1756965858024,0.01492,110620.0,110610.0,2.18125323]
[1756965858221,0.39973349,110620.0,110610.0,1.29176498]
[1756965858420,0.39973349,110620.0,110610.0,1.58474763]
[1756965858725,0.03893349,110620.0,110610.0,1.58474763]
[1756965858922,0.03893349,110620.0,110610.0,1.27474763]
[1756965859121,0.37893349,110620.0,110610.0,1.63554763]
[1756965859311,0.37893349,110620.0,110610.0,1.76954763]
[1756965859312,0.37993349,110620.0,110610.0,1.76954763]
[1756965859512,0.38093349,110620.0,110610.0,1.77354763]
[1756965859716,0.42093349,110620.0,110610.0,1.77354763]
[1756965860126,0.35093349,110620.0,110610.0,1.77354763]
[1756965861121,0.35093349,110620.0,110610.0,1.77254763]
[1756965861321,0.04093349,110620.0,110610.0,1.77254763]
[1756965861818,0.40093349,110620.0,110610.0,1.77254763]
[1756965862014,0.04093349,110620.0,110610.0,1.77254763]
[1756965862525,0.04093349,110620.0,110610.0,2.04382924]
[1756965862726,0.02601349,110620.0,110610.0,2.04923924]
[1756965870431,0.02601349,110620.0,110610.0,3.26641406]
[1756965870632,0.02601349,110620.0,110610.0,3.28494865]
[1756965871639,0.02601349,110620.0,110610.0,3.19456765]
[1756965873438,0.02601349,110620.0,110610.0,3.28541763]
[1756965874536,0.02601349,110620.0,110610.0,3.19503673]
[1756965876432,0.02601349,110620.0,110610.0,3.28541773]
[1756965885542,0.0001,110630.0,110620.0,0.1142928]
[1756965885741,0.0001,110640.0,110630.0,0.0326]
[1756965886041,0.0234,110640.0,110630.0,1.59675521]
[1756965887845,0.0234,110640.0,110630.0,1.59775521]
[1756965888536,0.001,110640.0,110630.0,1.59875521]
[1756965888739,0.001,110640.0,110630.0,1.62875521]
[1756965888943,0.03837,110640.0,110630.0,1.62003521]
[1756965889743,0.03837,110640.0,110630.0,0.79243521]
[1756965889942,0.03837,110640.0,110630.0,1.62003521]
[1756965891148,0.03837,110640.0,110630.0,1.24432]
[1756965891351,0.03837,110640.0,110630.0,1.62003521]
[1756965893950,0.001,110640.0,110630.0,1.62003521]
[1756965897554,0.04829447,110640.0,110630.0,0.79243521]
[1756965897757,0.04829447,110640.0,110630.0,1.61991521]
[1756965898949,0.02489447,110640.0,110630.0,1.61991521]
[1756965902057,0.02489447,110640.0,110630.0,0.79243521]
[1756965902256,0.02489447,110640.0,110630.0,1.61987521]
[1756965904159,0.04829447,110640.0,110630.0,0.79243521]
[1756965904357,0.04829447,110640.0,110630.0,1.61983521]
[1756965905155,0.04829447,110640.0,110630.0,0.79243521]
[1756965905361,0.06226447,110640.0,110630.0,1.61979521]
[1756965906056,0.06226447,110640.0,110630.0,0.43163521]
[1756965906261,1.39877968,110640.0,110630.0,0.88328]
[1756965906560,1.02306447,110640.0,110630.0,0.88328]
[1756965906858,0.67306447,110640.0,110630.0,0.88328]
[1756965907252,0.67306447,110640.0,110630.0,0.05592]
[1756965907560,1.04306447,110640.0,110630.0,0.88328]
[1756965907758,1.04306447,110640.0,110630.0,1.25899521]
[1756965908554,0.67306447,110640.0,110630.0,1.25899521]
[1756965911664,0.67306447,110640.0,110630.0,1.27731473]
[1756965913362,0.67306447,110640.0,110630.0,0.90159952]
[1756965913563,0.67306447,110640.0,110630.0,1.27731473]
[1756965915363,0.67306447,110640.0,110630.0,0.90159952]
[1756965915564,0.67306447,110640.0,110630.0,1.27731473]
[1756965915766,0.67306447,110640.0,110630.0,1.48086673]
[1756965916868,0.67306447,110640.0,110630.0,0.65350673]
[1756965917064,0.67306447,110640.0,110630.0,1.48078673]
[1756965924180,0.67306447,110640.0,110630.0,1.48104673]
[1756965925580,0.02489447,110640.0,110630.0,1.73104673]
[1756965925781,0.02489447,110640.0,110630.0,2.09184673]
[1756965928884,0.02489447,110640.0,110630.0,2.30184673]
[1756965933586,0.02489447,110640.0,110630.0,2.30173324]
[1756965938095,0.03854447,110640.0,110630.0,2.06149324]
[1756965938894,0.03854447,110640.0,110630.0,1.23445324]
[1756965939193,0.03854447,110640.0,110630.0,2.06149324]
[1756965940996,0.03854447,110640.0,110630.0,2.07149324]
[1756965941189,0.02489447,110640.0,110630.0,2.07149324]
[1756965943400,0.02489447,110640.0,110630.0,1.69589152]
[1756965943592,0.02489447,110640.0,110630.0,2.07149324]
[1756965948407,0.02489447,110640.0,110630.0,1.24445324]
[1756965948608,0.02489447,110640.0,110630.0,2.07141324]
[1756965949394,0.02489447,110640.0,110630.0,1.24445324]
[1756965949699,0.02489447,110640.0,110630.0,2.07137324]
[1756965956512,0.04891447,110640.0,110630.0,1.69573152]
[1756965956712,0.04891447,110640.0,110630.0,2.07133324]
[1756965958319,0.02489447,110640.0,110630.0,2.07133324]
[1756965959218,0.02489447,110640.0,110630.0,1.82133324]
[1756965960522,0.04891447,110640.0,110630.0,1.82129324]
[1756965965719,0.02502,110640.0,110630.0,1.82129324]
[1756965965922,0.04910231,110640.0,110630.0,1.82129324]
[1756965968317,0.02508231,110640.0,110630.0,1.82129324]
[1756965972123,0.02508231,110640.0,110630.0,3.038463]
[1756965972317,0.02115303,110650.0,110640.0,0.1008364]
[1756965972522,0.02105303,110650.0,110640.0,2.11854328]
[1756965973623,0.02205303,110650.0,110640.0,2.11880328]
[1756965973817,0.02405303,110650.0,110640.0,2.11980328]
[1756965974622,0.02405303,110650.0,110640.0,2.85616688]
[1756965975625,0.02405303,110650.0,110640.0,2.85516688]
[1756965975826,0.02205303,110650.0,110640.0,2.85716688]
[1756965976022,0.02205303,110650.0,110640.0,2.85816688]
[1756965976324,0.02205303,110650.0,110640.0,2.03144688]
[1756965976718,0.02205303,110650.0,110640.0,2.85812688]
[1756965977328,0.02205303,110650.0,110640.0,2.94848328]
[1756965979422,0.02185303,110650.0,110640.0,2.94848328]
[1756965980030,0.02185303,110650.0,110640.0,1.4460764]
[1756965980329,0.02185303,110650.0,110640.0,2.94848328]
[1756965980729,0.02185303,110650.0,110640.0,2.85808688]
[1756965981134,0.02185303,110650.0,110640.0,2.03144688]
[1756965981630,0.02185303,110650.0,110640.0,2.85804688]
[1756965985635,0.02185303,110650.0,110640.0,2.94840328]
[1756965985932,0.02185303,110650.0,110640.0,2.85804688]
[1756965986134,0.02185303,110650.0,110640.0,2.85800688]
[1756965986836,0.02185303,110650.0,110640.0,2.03144688]
[1756965987033,0.08357226,110650.0,110640.0,0.89416172]
[1756965987334,0.08357226,110650.0,110640.0,1.72072172]
[1756965987525,0.08357226,110650.0,110640.0,2.09632344]
[1756965988224,0.05963303,110650.0,110640.0,2.09632344]
[1756965988428,0.08357421,110650.0,110640.0,2.09632344]
[1756965991238,0.04802118,110650.0,110640.0,2.09632344]
[1756965991839,0.04802118,110650.0,110640.0,2.84752688]
[1756965993433,0.04802118,110650.0,110640.0,2.84721416]
[1756965995937,0.04803205,110650.0,110640.0,2.84721416]
[1756966000146,0.04803205,110650.0,110640.0,1.34512]
[1756966000350,0.04803205,110650.0,110640.0,2.84721416]
[1756966002841,0.04803205,110650.0,110640.0,3.06721416]
[1756966003345,0.02497512,110650.0,110640.0,3.06721416]
[1756966009060,0.02497512,110650.0,110640.0,2.71721416]
[1756966010562,0.02497512,110650.0,110640.0,1.21512]
[1756966010761,0.02497512,110650.0,110640.0,2.71721416]
[1756966017869,0.02497512,110650.0,110640.0,2.72721416]
[1756966025268,0.0001,110660.0,110650.0,0.02961]
[1756966025468,0.02066071,110670.0,110660.0,0.1232201]
[1756966025769,0.38359,110690.0,110680.0,0.03468]
[1756966026071,0.35998,110690.0,110680.0,1.23672354]
[1756966026372,0.40576448,110700.0,110690.0,0.02961]
[1756966026673,0.72986448,110700.0,110690.0,0.40513354]
[1756966026875,0.72986448,110700.0,110690.0,0.40539354]
[1756966027076,0.72986448,110700.0,110690.0,0.43757569]
[1756966027975,0.63441,110700.0,110690.0,0.46125735]
[1756966028275,0.004,110700.0,110690.0,0.82305735]
[1756966028568,0.004,110700.0,110690.0,0.84305735]
[1756966028974,0.004,110700.0,110690.0,1.67017735]
[1756966029161,0.002,110700.0,110690.0,1.66917735]
[1756966029362,0.004,110700.0,110690.0,1.67017735]
[1756966029570,0.004,110700.0,110690.0,1.67005735]
[1756966030172,0.004,110700.0,110690.0,0.84305735]
[1756966030372,0.02761,110700.0,110690.0,1.66993735]
[1756966030972,0.02561,110700.0,110690.0,1.66993735]
[1756966031166,0.02661,110700.0,110690.0,1.66993735]
[1756966031574,0.02661,110700.0,110690.0,1.7414021]
[1756966032473,0.02661,110700.0,110690.0,1.7411621]
[1756966032874,0.02661,110700.0,110690.0,1.7410821]
[1756966033374,0.04103,110700.0,110690.0,0.9145221]
[1756966033575,0.04103,110700.0,110690.0,1.7410421]
[1756966033774,0.04103,110700.0,110690.0,1.7410021]
[1756966034377,0.04103,110700.0,110690.0,1.7409221]
[1756966035265,0.02661,110700.0,110690.0,1.7409221]
[1756966035871,0.04103,110700.0,110690.0,0.9145221]
[1756966036176,0.60103,110700.0,110690.0,0.99990856]
[1756966036377,0.64103,110700.0,110690.0,1.3754321]
[1756966036683,0.29103,110700.0,110690.0,1.7362321]
[1756966036869,0.29103,110700.0,110690.0,1.7416421]
[1756966037271,0.003,110700.0,110690.0,1.7416421]
[1756966038674,0.02621816,110700.0,110690.0,1.7416421]
[1756966039189,0.02621816,110700.0,110690.0,2.11716564]
[1756966039190,0.02581816,110700.0,110690.0,2.11716564]
[1756966039481,0.0026,110700.0,110690.0,2.95852832]
[1756966040373,0.0026,110700.0,110690.0,3.20852832]
[1756966043988,1e-08,110700.0,110690.0,3.20852832]
[1756966046485,1e-08,110700.0,110690.0,3.56852832]
[1756966046691,1e-08,110700.0,110690.0,2.65109272]
[1756966046882,1e-08,110700.0,110690.0,3.47953272]
[1756966047185,1e-08,110700.0,110690.0,3.56984832]
[1756966047680,1e-08,110700.0,110690.0,3.09949272]
[1756966047899,0.03761001,110700.0,110690.0,0.8991121]
[1756966048082,0.06082828,110700.0,110690.0,1.7276321]
[1756966049685,0.06082828,110700.0,110690.0,1.7330421]
[1756966049986,0.04640828,110700.0,110690.0,1.7330421]
[1756966050183,0.04640828,110700.0,110690.0,2.0430421]
[1756966051083,0.04640828,110700.0,110690.0,1.7230421]
[1756966051286,0.04640828,110700.0,110690.0,2.1030421]
[1756966053588,0.04640828,110700.0,110690.0,2.10268312]
[1756966053789,0.04640828,110700.0,110690.0,0.90416312]
[1756966053984,0.06082828,110700.0,110690.0,1.72196312]
[1756966054185,0.06082828,110700.0,110690.0,1.73196312]
[1756966054792,0.04640828,110700.0,110690.0,1.73196312]
[1756966055891,0.04640828,110700.0,110690.0,2.10196312]
[1756966056693,0.02321828,110700.0,110690.0,2.10196312]
[1756966057293,0.02321828,110700.0,110690.0,1.72679856]
[1756966057502,0.06082828,110700.0,110690.0,1.74611312]
[1756966057799,0.13024833,110700.0,110690.0,1.74611312]
[1756966059900,0.13024833,110700.0,110690.0,1.37094856]
[1756966060094,0.13024833,110700.0,110690.0,1.74611312]
[1756966060696,0.13024833,110700.0,110690.0,1.75152312]
[1756966061092,0.49024833,110700.0,110690.0,1.74611312]
[1756966061897,0.13024833,110700.0,110690.0,1.74611312]
[1756966062793,0.11582833,110700.0,110690.0,1.75152312]
[1756966063097,0.11582833,110700.0,110690.0,2.08152312]
[1756966063298,0.11582833,110700.0,110690.0,1.85152312]
[1756966063498,0.02321828,110700.0,110690.0,3.1570168]
[1756966063899,0.00674347,110700.0,110690.0,3.1570168]
[1756966064300,0.00674347,110700.0,110690.0,3.4070168]
[1756966064998,0.0001,110710.0,110690.0,3.4973323]
[1756966065206,0.04805167,110720.0,110710.0,0.03654]
[1756966065391,0.45399509,110740.0,110720.0,0.03312]
[1756966065595,0.40826949,110740.0,110730.0,0.87258]
[1756966065806,0.43247949,110740.0,110730.0,0.87258]
[1756966065994,0.68247949,110740.0,110730.0,0.86442]
[1756966066500,0.68247949,110740.0,110730.0,0.86468]
[1756966066702,0.68247949,110740.0,110730.0,1.23984456]
[1756966068106,0.68847949,110740.0,110730.0,1.23984456]
[1756966068302,0.68847949,110740.0,110730.0,0.86468]
[1756966068798,0.68247949,110740.0,110730.0,1.23984456]
[1756966069005,0.69447949,110740.0,110730.0,1.24184456]
[1756966069307,0.31387949,110740.0,110730.0,1.24184456]
[1756966069505,0.31387949,110740.0,110730.0,1.24084456]
[1756966069696,0.31087949,110740.0,110730.0,1.25584456]
[1756966070908,0.64687949,110740.0,110730.0,1.25484456]
[1756966071098,0.64887949,110740.0,110730.0,0.86568]
[1756966071302,0.30887949,110740.0,110730.0,0.0238]
[1756966071499,0.99967949,110740.0,110730.0,0.86768]
[1756966071813,1.00967949,110740.0,110730.0,0.86768]
[1756966072200,1.00967949,110740.0,110730.0,0.00126]
[1756966072201,1.38484405,110740.0,110730.0,0.00126]
[1756966072402,1.44976965,110740.0,110730.0,0.00126]
[1756966072602,1.38484405,110740.0,110730.0,0.00126]
[1756966072797,1.44976965,110740.0,110730.0,0.00126]
[1756966073904,1.07460509,110740.0,110730.0,0.00126]
[1756966074211,1.44976965,110740.0,110730.0,0.00126]
[1756966076010,0.72967949,110740.0,110730.0,0.39896456]
[1756966076314,0.78967949,110740.0,110730.0,0.39896456]
[1756966076515,0.41967949,110740.0,110730.0,0.39896456]
[1756966076910,0.41967949,110740.0,110730.0,0.0238]
[1756966077212,0.44330418,110740.0,110730.0,0.0238]
[1756966077512,0.82330418,110740.0,110730.0,0.0238]
[1756966077712,0.08250418,110740.0,110730.0,0.0378]
[1756966077916,0.0755753,110740.0,110730.0,1.25796456]
[1756966079315,0.0755753,110740.0,110730.0,1.61796456]
[1756966079516,0.0755753,110740.0,110730.0,1.25796456]
[1756966080120,0.0755753,110740.0,110730.0,0.8828]
[1756966080418,0.0755753,110740.0,110730.0,1.25796456]
[1756966080722,0.03062469,110740.0,110730.0,1.50796456]
[1756966080917,0.03061713,110740.0,110730.0,1.88796456]
[1756966081219,0.03061713,110740.0,110730.0,1.50796456]
[1756966082421,0.03061713,110740.0,110730.0,0.66296456]
[1756966082722,0.03061713,110740.0,110730.0,1.50820456]
[1756966083617,0.05482713,110740.0,110730.0,0.66296456]
[1756966083822,0.05482713,110740.0,110730.0,1.50780456]
[1756966084716,0.05482713,110740.0,110730.0,0.2878]
[1756966084915,0.05482713,110740.0,110730.0,1.50752456]
[1756966086323,0.05482713,110740.0,110730.0,0.41296456]
[1756966086519,0.06904713,110740.0,110730.0,1.25744456]
[1756966087023,0.05482713,110740.0,110730.0,1.25744456]
[1756966087227,0.05482713,110740.0,110730.0,0.88228]
[1756966087420,0.05482713,110740.0,110730.0,1.25744456]
[1756966091119,0.78978713,110740.0,110730.0,0.41296456]
[1756966091324,0.75978713,110740.0,110730.0,0.88132]
[1756966091532,0.42978713,110740.0,110730.0,1.25648456]
[1756966091730,0.42978713,110740.0,110730.0,0.88132]
[1756966091925,1.17495169,110740.0,110730.0,0.88132]
[1756966092128,0.80495169,110740.0,110730.0,0.88132]
[1756966092530,1.12495169,110740.0,110730.0,0.0238]
[1756966092730,1.10133456,110740.0,110730.0,0.85348]
[1756966092932,0.80496684,110740.0,110730.0,0.85348]
[1756966093239,1.14496684,110740.0,110730.0,0.85348]
[1756966093439,0.42980228,110740.0,110730.0,0.85348]
[1756966093631,0.74980228,110740.0,110730.0,0.85348]
[1756966093837,0.80980228,110740.0,110730.0,0.85348]
[1756966094238,0.75980228,110740.0,110730.0,0.85348]
[1756966095239,0.75980228,110740.0,110730.0,0.0238]
[1756966095444,1.43357055,110740.0,110730.0,0.0238]
[1756966095645,1.38496684,110740.0,110730.0,0.0238]
[1756966096435,1.43357055,110740.0,110730.0,0.0238]
[1756966099844,1.43357055,110740.0,110730.0,0.00126]
[1756966100149,1.44989244,110740.0,110730.0,0.00126]
[1756966100546,0.01416,110720.0,110710.0,1.21888456]
[1756966100847,0.03779228,110720.0,110710.0,1.00372]
[1756966101041,0.02363228,110720.0,110710.0,1.83879366]
[1756966101246,0.02363228,110720.0,110710.0,2.08879366]
[1756966101443,0.38447185,110730.0,110720.0,0.03974]
[1756966101745,0.02367185,110730.0,110720.0,1.09570456]
[1756966101944,0.02367185,110730.0,110720.0,1.43599546]
[1756966102339,0.02367185,110730.0,110720.0,1.40570456]
[1756966102648,0.03783185,110730.0,110720.0,1.24438]
[1756966102846,0.02367185,110730.0,110720.0,1.61954456]
[1756966103043,0.02367185,110730.0,110720.0,1.24438]
[1756966103243,0.02367185,110730.0,110720.0,1.61954456]
[1756966103844,0.02767185,110730.0,110720.0,1.62054456]
[1756966104551,0.02767185,110730.0,110720.0,1.61954456]
[1756966104748,0.02367185,110730.0,110720.0,1.61954456]
[1756966104948,0.02667185,110730.0,110720.0,1.62054456]
[1756966106249,0.02667185,110730.0,110720.0,1.87054456]
[1756966115453,0.02667185,110730.0,110720.0,1.8703667]
[1756966117455,0.02666452,110730.0,110720.0,1.8703667]
[1756966118151,0.02666452,110730.0,110720.0,1.0265267]
[1756966118454,0.02666452,110730.0,110720.0,1.8694867]
[1756966122047,0.02666452,110730.0,110720.0,3.0847378]
[1756966122250,0.4607552,110760.0,110750.0,0.00881]
[1756966122251,0.46920562,110760.0,110750.0,0.00881]
[1756966122553,0.84920562,110760.0,110750.0,0.87321]
[1756966122759,0.46920562,110760.0,110750.0,0.87321]
[1756966123359,0.4275196,110760.0,110750.0,0.87421]
[1756966123561,0.4475196,110760.0,110750.0,0.87421]
[1756966124360,0.4475196,110760.0,110750.0,1.2481967]
[1756966124361,0.0278696,110760.0,110750.0,1.2481967]
[1756966124654,0.0248696,110760.0,110750.0,1.6099967]
[1756966125060,0.0278696,110760.0,110750.0,1.6109967]
[1756966125265,0.0278696,110760.0,110750.0,1.68492828]
[1756966125863,0.0278696,110760.0,110750.0,1.68392828]
[1756966125864,0.0248696,110760.0,110750.0,1.68392828]
[1756966126156,0.42374602,110780.0,110770.0,0.01485]
[1756966126357,0.42029845,110780.0,110770.0,1.2537967]
[1756966126563,0.42029845,110780.0,110770.0,1.2389467]
[1756966126763,0.42029845,110780.0,110770.0,0.02288]
[1756966127061,1.15528515,110780.0,110770.0,0.05562132]
[1756966127757,0.42029845,110780.0,110770.0,0.05562132]
[1756966127955,0.79129845,110780.0,110770.0,0.05562132]
[1756966128153,0.42229845,110780.0,110770.0,0.05662132]
[1756966128362,1.41728515,110780.0,110770.0,0.05662132]
[1756966128954,1.04728515,110780.0,110770.0,0.05662132]
[1756966129160,1.04636515,110780.0,110770.0,0.05662132]
[1756966129858,1.36636515,110780.0,110770.0,0.05662132]
[1756966130257,0.67137845,110780.0,110770.0,0.05662132]
[1756966130457,1.04636515,110780.0,110770.0,0.05662132]
[1756966130959,1.05137845,110780.0,110770.0,0.05662132]
[1756966131159,0.69137845,110780.0,110770.0,0.05662132]
[1756966131361,1.04137845,110780.0,110770.0,0.05662132]
[1756966131665,0.69137845,110780.0,110770.0,0.05662132]
[1756966131865,1.06636515,110780.0,110770.0,0.05662132]
[1756966132061,1.04636515,110780.0,110770.0,0.05662132]
[1756966132365,0.69137845,110780.0,110770.0,0.05662132]
[1756966132562,1.37636515,110780.0,110770.0,0.05662132]
[1756966134164,1.3998099,110780.0,110770.0,0.05662132]
[1756966134358,1.0698099,110780.0,110770.0,0.05662132]
[1756966134666,1.4398099,110780.0,110770.0,0.05662132]
[1756966134863,1.3998099,110780.0,110770.0,0.05662132]
[1756966135166,1.0898099,110780.0,110770.0,0.05662132]
[1756966135355,1.0698099,110780.0,110770.0,0.05662132]
[1756966135864,0.6948232,110780.0,110770.0,0.05662132]
[1756966136066,1.0698099,110780.0,110770.0,0.05662132]
[1756966136360,0.6948232,110780.0,110770.0,0.05662132]
[1756966136663,0.0846932,110780.0,110770.0,0.43160802]
[1756966136868,0.0846932,110780.0,110770.0,0.05662132]
[1756966137568,0.0846932,110780.0,110770.0,0.43160802]
[1756966138163,0.0846932,110780.0,110770.0,0.05662132]
[1756966138360,0.0846932,110780.0,110770.0,0.43160802]
[1756966140163,0.0846932,110780.0,110770.0,0.05662132]
[1756966140568,0.4596799,110780.0,110770.0,0.05662132]
[1756966140862,1.1904799,110780.0,110770.0,0.05662132]
[1756966141260,1.1904799,110780.0,110770.0,0.03374132]
[1756966141460,0.8204799,110780.0,110770.0,0.03374132]
[1756966141768,1.2004799,110780.0,110770.0,0.05662132]
[1756966142162,0.8204799,110780.0,110770.0,0.05662132]
[1756966142362,0.4454932,110780.0,110770.0,0.05662132]
[1756966142567,0.0846932,110780.0,110770.0,0.43160802]
[1756966143871,0.0846932,110780.0,110770.0,0.44645802]
[1756966144372,0.0707832,110780.0,110770.0,0.44645802]
[1756966147075,0.0846932,110780.0,110770.0,0.44645802]
[1756966147668,0.0846932,110780.0,110770.0,0.07147132]
[1756966147869,0.0846932,110780.0,110770.0,0.44645802]
[1756966148368,0.0846932,110780.0,110770.0,0.43160802]
[1756966148564,0.8204799,110780.0,110770.0,0.90122132]
[1756966148769,1.1604799,110780.0,110770.0,0.90122132]
[1756966148969,0.8204799,110780.0,110770.0,0.90122132]
[1756966149769,0.8204799,110780.0,110770.0,0.90122132]
[1756966150369,0.8204799,110780.0,110770.0,0.05662132]
[1756966150571,1.19916592,110780.0,110770.0,0.05662132]
[1756966150776,0.88916592,110780.0,110770.0,0.05662132]
[1756966150978,1.12417922,110780.0,110770.0,0.03374132]
[1756966151275,1.49916592,110780.0,110770.0,0.05723132]
[1756966151676,1.13916592,110780.0,110770.0,0.05723132]
[1756966151876,1.49916592,110780.0,110770.0,0.05723132]
[1756966152283,1.4504799,110780.0,110770.0,0.05723132]
[1756966152475,1.0704799,110780.0,110770.0,0.05723132]
[1756966152671,1.3804799,110780.0,110770.0,0.05723132]
[1756966153073,1.3804799,110780.0,110770.0,0.03374132]
[1756966153272,1.0704799,110780.0,110770.0,0.05723132]
[1756966153765,1.3904799,110780.0,110770.0,0.05723132]
[1756966154577,1.0154932,110780.0,110770.0,0.05723132]
[1756966154776,1.3904799,110780.0,110770.0,0.03374132]
[1756966155976,1.0904799,110780.0,110770.0,0.03374132]
[1756966156180,0.0846932,110780.0,110770.0,0.43221802]
[1756966156375,0.13340466,110780.0,110770.0,0.43221802]
[1756966156569,0.4454932,110780.0,110770.0,0.05723132]
[1756966156775,1.1704799,110780.0,110770.0,0.03374132]
[1756966157484,0.8204799,110780.0,110770.0,0.05723132]
[1756966157989,0.8204799,110780.0,110770.0,0.03374132]
[1756966158375,1.1604799,110780.0,110770.0,0.03374132]
[1756966158576,1.1804799,110780.0,110770.0,0.03374132]
[1756966158884,1.69680768,110780.0,110770.0,0.03374132]
[1756966159181,1.22883948,110780.0,110770.0,0.03354132]
[1756966159385,0.86883948,110780.0,110770.0,0.03354132]
[1756966160785,1.18883948,110780.0,110770.0,0.03354132]
[1756966160975,1.17883948,110780.0,110770.0,0.03354132]
[1756966162684,0.86883948,110780.0,110770.0,0.03354132]
[1756966162884,0.49385278,110780.0,110770.0,0.03354132]
[1756966163185,0.86883948,110780.0,110770.0,0.03354132]
[1756966163581,1.23883948,110780.0,110770.0,0.03354132]
[1756966164195,0.03885,110770.0,110760.0,0.0001]
[1756966164391,0.03885,110760.0,110750.0,0.09762158]
[1756966164581,0.79792655,110760.0,110750.0,0.17496032]
[1756966164782,0.79792655,110760.0,110750.0,0.10102874]
[1756966164978,1.12792655,110760.0,110750.0,0.10102874]
[1756966165191,0.42293985,110760.0,110750.0,0.10102874]
[1756966165389,0.40842985,110760.0,110750.0,0.74036544]
[1756966165784,0.42393985,110760.0,110750.0,0.74236544]
[1756966166086,0.79892655,110760.0,110750.0,0.175639]
[1756966166478,1.16892655,110760.0,110750.0,0.175639]
[1756966166684,0.79892655,110760.0,110750.0,0.175639]
[1756966166983,1.12892655,110760.0,110750.0,0.175639]
[1756966167280,0.79892655,110760.0,110750.0,0.176639]
[1756966167486,0.42393985,110760.0,110750.0,0.176639]
[1756966167885,0.79892655,110760.0,110750.0,0.176639]
[1756966168486,0.42393985,110760.0,110750.0,0.176639]
[1756966168890,0.77393985,110760.0,110750.0,0.176639]
[1756966169078,0.76393985,110760.0,110750.0,0.176639]
[1756966169282,0.79393985,110760.0,110750.0,0.176639]
[1756966169486,0.79892655,110760.0,110750.0,0.176639]
[1756966169889,1.15892655,110760.0,110750.0,0.176639]
[1756966170090,1.12892655,110760.0,110750.0,0.176639]
[1756966170291,0.79892655,110760.0,110750.0,0.176639]
[1756966171291,0.42393985,110760.0,110750.0,0.176639]
[1756966172085,0.42393985,110760.0,110750.0,0.190989]
[1756966172287,0.42393985,110760.0,110750.0,0.5659757]
[1756966173092,0.42393985,110760.0,110750.0,0.190989]
[1756966173283,0.42393985,110760.0,110750.0,0.8159757]
[1756966173482,0.42393985,110760.0,110750.0,0.5659757]
[1756966174191,0.42393985,110760.0,110750.0,0.190789]
[1756966174495,0.42393985,110760.0,110750.0,0.176439]
[1756966174691,0.42393985,110760.0,110750.0,0.5514257]
[1756966175386,0.40942985,110760.0,110750.0,1.4053757]
[1756966175793,0.40942985,110760.0,110750.0,1.030389]
[1756966175993,0.40942985,110760.0,110750.0,1.4053757]
[1756966177493,0.40942985,110760.0,110750.0,1.40525271]
[1756966178799,0.40942985,110760.0,110750.0,1.030389]
[1756966179098,0.40942985,110760.0,110750.0,1.40525271]
[1756966181399,0.40942985,110760.0,110750.0,0.56565271]
[1756966181604,0.76942985,110760.0,110750.0,0.56565271]
[1756966181898,0.40942985,110760.0,110750.0,1.030309]
[1756966182100,0.79815356,110760.0,110750.0,1.030309]
[1756966183499,0.79815356,110760.0,110750.0,1.015959]
[1756966185001,1.11815356,110760.0,110750.0,0.176439]
[1756966185798,1.11815356,110760.0,110750.0,0.126439]
[1756966186712,1.16686804,110760.0,110750.0,0.126439]
[1756966187199,1.16686804,110760.0,110750.0,0.103149]
[1756966187405,1.41686804,110760.0,110750.0,0.103149]
[1756966189008,1.41686804,110760.0,110750.0,0.126119]
[1756966190402,1.03200433,110760.0,110750.0,0.126119]
[1756966190605,1.93510804,110760.0,110750.0,0.126119]
[1756966190908,2.29510804,110760.0,110750.0,0.126119]
[1756966191111,1.93510804,110760.0,110750.0,0.126119]
[1756966191507,2.28510804,110760.0,110750.0,0.126119]
[1756966192406,1.93510804,110760.0,110750.0,0.126119]
[1756966192716,2.27510804,110760.0,110750.0,0.126119]
[1756966193399,1.93510804,110760.0,110750.0,0.126119]
[1756966193806,1.09686804,110760.0,110750.0,0.126119]
[1756966194012,1.09686804,110760.0,110750.0,0.51497271]
[1756966194013,0.47200433,110760.0,110750.0,0.51497271]
[1756966194308,0.45814433,110760.0,110750.0,0.76497271]
[1756966194709,0.40942985,110760.0,110750.0,0.76497271]
[1756966195610,0.40942985,110760.0,110750.0,1.60273271]
[1756966198112,0.03184493,110780.0,110760.0,0.03696]
[1756966198304,0.02346,110780.0,110770.0,0.75856]
[1756966198610,0.02346,110780.0,110770.0,1.97078371]
[1756966198807,0.41218371,110780.0,110770.0,0.75856]
[1756966199006,0.03732,110780.0,110770.0,0.75856]
[1756966199204,0.41218371,110780.0,110770.0,0.02297]
[1756966199504,1.62942371,110780.0,110770.0,0.02297]
[1756966200706,1.25456,110780.0,110770.0,0.02297]
[1756966201112,1.62942371,110780.0,110770.0,0.02297]
[1756966201315,1.63042371,110780.0,110770.0,0.02297]
[1756966201615,1.63142371,110780.0,110770.0,0.02297]
[1756966201808,1.25656,110780.0,110770.0,0.02297]
[1756966202008,1.63142371,110780.0,110770.0,0.02297]
[1756966202210,1.25142371,110780.0,110770.0,0.02297]
[1756966202815,1.60142371,110780.0,110770.0,0.02297]
[1756966203014,1.25142371,110780.0,110770.0,0.02297]
[1756966203314,0.87656,110780.0,110770.0,0.02297]
[1756966203512,1.50142371,110780.0,110770.0,0.02297]
[1756966203718,0.40055017,110770.0,110760.0,0.0001]
[1756966203910,0.01386,110760.0,110750.0,0.484119]
[1756966204115,1.24894371,110760.0,110750.0,0.603919]
[1756966204617,0.41218371,110760.0,110750.0,0.243119]
[1756966204817,0.72218371,110760.0,110750.0,0.100149]
[1756966205017,0.72118371,110760.0,110750.0,0.001]
[1756966205622,0.72218371,110760.0,110750.0,0.003]
[1756966205818,1.33298371,110760.0,110750.0,0.003]
[1756966206920,1.33298371,110760.0,110750.0,0.02633307]
[1756966209231,1.33298371,110760.0,110750.0,0.003]
[1756966209612,1.33298371,110760.0,110750.0,0.02597]
[1756966209817,1.33298371,110760.0,110750.0,0.003]
[1756966210017,1.35610905,110760.0,110750.0,0.003]
[1756966210622,0.67124534,110760.0,110750.0,0.02761]
[1756966210827,1.84764534,110760.0,110750.0,0.02761]
[1756966211125,1.52764534,110760.0,110750.0,0.05126949]
[1756966211314,1.90250905,110760.0,110750.0,0.05126949]
[1756966211518,1.88250905,110760.0,110750.0,0.05126949]
[1756966211718,1.90250905,110760.0,110750.0,0.12169186]
[1756966211917,1.88250905,110760.0,110750.0,0.12169186]
[1756966212127,1.90250905,110760.0,110750.0,0.12169186]
[1756966212427,2.26250905,110760.0,110750.0,0.09708186]
[1756966212829,1.88250905,110760.0,110750.0,0.09708186]
[1756966213223,1.88764534,110760.0,110750.0,0.09708186]